bitfinex/quotes_SOLUSD_20240727
["timestamp","ask_amount","ask_price","bid_price","bid_amount"]
[1722097587795,1.70393571,183.28,183.16,16.48]
[1722097587989,1.70393571,183.28,183.17,0.61574333]
[1722097588191,10.66775879,183.34,183.18,16.7555622]
[1722097588391,10.66775879,183.34,183.19,45.34]
[1722097588392,6.9172945,183.34,183.19,45.34]
[1722097588615,12.3716945,183.34,183.2,0.275507]
[1722097588794,12.3716945,183.34,183.21,0.34]
[1722097589116,12.3716945,183.34,183.22,0.27551]
[1722097589297,12.3716945,183.34,183.23,0.34]
[1722097589496,12.3716945,183.34,183.24,0.27525978]
[1722097589788,6.9172945,183.34,183.23,0.61526948]
[1722097589998,5.4547,183.33,183.24,0.27526948]
[1722097590202,5.4552,183.31,183.23,0.17]
[1722097590394,6.9172945,183.34,183.23,0.17]
[1722097590597,5.4554,183.31,183.23,0.44540762]
[1722097590790,5.4554,183.31,183.23,0.27540762]
[1722097591106,6.9172945,183.34,183.23,0.27540762]
[1722097591284,20.0,183.33,183.2,0.27576754]
[1722097591479,1.70393571,183.32,183.19,0.17]
[1722097591687,3.0681035,183.32,183.12,16.48]
[1722097591907,5.4557,183.3,183.13,0.27629204]
[1722097592091,7.15963571,183.3,183.13,0.27629204]
[1722097592286,5.4558,183.29,183.13,0.27629204]
[1722097592487,1.70393571,183.3,183.13,0.27629204]
[1722097592488,3.06818593,183.3,183.13,0.27629204]
[1722097592692,69.0866,183.33,183.13,0.27629204]
[1722097592693,5.4566,183.27,183.13,0.27629204]
[1722097592896,1.70393571,183.28,183.13,0.27629204]
[1722097593589,21.70393571,183.28,183.13,0.27629204]
[1722097594190,5.4564,183.27,183.13,0.27629204]
[1722097594692,7.16003571,183.28,183.13,0.27629204]
[1722097594897,1.70393571,183.28,183.13,0.27629204]
[1722097595127,1.70393571,183.28,183.17,16.48]
[1722097595289,1.70393571,183.28,183.18,0.27586687]
[1722097595692,1.70393571,183.28,183.11,0.27588965]
[1722097595904,1.70393571,183.28,183.12,16.48]
[1722097596099,1.70393571,183.28,183.13,61.75639198]
[1722097596305,1.70393571,183.28,183.14,45.0]
[1722097596620,1.70393571,183.28,183.15,0.2763848]
[1722097597193,1.70393571,183.28,183.16,0.34]
[1722097597498,1.70393571,183.28,183.17,0.27619385]
[1722097597689,1.70393571,183.28,183.18,0.34]
[1722097597891,20.0,183.3,183.18,0.61620512]
[1722097598103,40.9048,183.33,183.18,0.61620512]
[1722097598305,20.0,183.32,183.18,0.61620512]
[1722097599311,6.0129,183.36,183.18,0.61620512]
[1722097599509,6.0129,183.36,183.18,17.09620512]
[1722097599695,6.0129,183.36,183.2,16.48]
[1722097599696,11.4666,183.36,183.2,16.48]
[1722097599895,11.4666,183.36,183.19,20.0]
[1722097599896,6.0129,183.36,183.21,62.09503057]
[1722097600101,6.0129,183.36,183.22,20.0]
[1722097600305,11.4667,183.36,183.23,45.61492691]
[1722097600503,6.0129,183.36,183.24,20.2750923]
[1722097600698,11.4666,183.36,183.25,45.0]
[1722097600894,6.0129,183.36,183.26,20.27506244]
[1722097601209,6.0129,183.36,183.27,45.27507039]
[1722097601400,11.4667,183.36,183.27,45.27507039]
[1722097601793,6.0129,183.36,183.27,45.27507039]
[1722097603110,6.0129,183.36,183.28,0.27511552]
[1722097603498,5.454,183.35,183.27,41.89118813]
[1722097603698,6.0129,183.36,183.27,41.89118813]
[1722097604015,10.66765879,183.34,183.27,41.89118813]
[1722097604197,5.21335879,183.34,183.27,41.89118813]
[1722097609401,5.21335879,183.34,183.28,20.34]
[1722097609600,5.21335879,183.34,183.29,45.0]
[1722097609796,5.21335879,183.34,183.3,20.0]
[1722097610013,5.21335879,183.34,183.31,45.0]
[1722097610325,5.21335879,183.34,183.32,20.0]
[1722097610497,5.21335879,183.34,183.33,45.0]
[1722097610694,5.21335879,183.34,183.33,41.64963876]
[1722097610900,5.21335879,183.34,183.28,8.49224612]
[1722097610901,5.21335879,183.34,183.26,8.15224612]
[1722097611303,5.21335879,183.34,183.27,20.0]
[1722097611509,5.21335879,183.34,183.26,20.34]
[1722097611718,5.21335879,183.34,183.26,0.34]
[1722097612929,5.21335879,183.34,183.26,45.34]
[1722097613115,5.21335879,183.34,183.27,20.0]
[1722097613300,5.21335879,183.34,183.28,45.0]
[1722097613615,5.21335879,183.34,183.29,20.0]
[1722097613924,5.21335879,183.34,183.3,45.0]
[1722097614599,5.21335879,183.34,183.3,41.62173418]
[1722097615329,5.21335879,183.34,183.31,20.0]
[1722097615828,5.21335879,183.34,183.31,16.62575182]
[1722097616005,5.21335879,183.34,183.31,13.25577497]
[1722097616601,5.21335879,183.34,183.32,45.0]
[1722097616811,5.21335879,183.34,183.3,41.62173418]
[1722097618126,5.21335879,183.34,183.31,20.0]
[1722097618326,5.21335879,183.34,183.32,45.0]
[1722097618627,5.21335879,183.34,183.31,20.0]
[1722097618834,5.21335879,183.34,183.32,45.0]
[1722097619811,5.21335879,183.34,183.26,0.34]
[1722097620225,5.21335879,183.34,183.25,45.34]
[1722097620415,5.21335879,183.34,183.26,20.0]
[1722097620613,5.21335879,183.34,183.27,45.34]
[1722097620926,5.21335879,183.34,183.28,20.0]
[1722097621429,5.21335879,183.34,183.25,0.34]
[1722097622437,5.21335879,183.34,183.25,0.17]
[1722097622931,5.21335879,183.34,183.25,0.34]
[1722097624208,5.21335879,183.34,183.25,0.17]
[1722097624508,5.21335879,183.34,183.2,18.18500632]
[1722097624823,5.21335879,183.34,183.21,45.34]
[1722097625616,5.21335879,183.34,183.22,20.0]
[1722097625817,5.21335879,183.34,183.23,45.34]
[1722097626017,5.21335879,183.34,183.24,20.0]
[1722097626229,5.21335879,183.34,183.25,45.0]
[1722097626409,5.21335879,183.34,183.26,20.0]
[1722097626721,5.21335879,183.34,183.27,45.0]
[1722097627034,5.21335879,183.34,183.28,20.0]
[1722097627207,5.21335879,183.34,183.29,45.0]
[1722097627407,5.21335879,183.34,183.3,20.0]
[1722097627633,5.21335879,183.34,183.31,45.0]
[1722097627812,5.21335879,183.34,183.32,20.0]
[1722097629521,5.21335879,183.34,183.2,16.48]
[1722097629704,5.21335879,183.34,183.19,38.17858278]
[1722097630312,6.03541208,183.34,183.19,38.17858278]
[1722097630633,6.03541208,183.34,183.19,21.69858278]
[1722097630838,0.82205329,183.33,183.19,1.69858278]
[1722097631013,29.0,183.32,183.17,38.351053]
[1722097631723,29.0,183.32,183.17,40.06672444]
[1722097631935,29.0,183.32,183.18,0.34]
[1722097631936,8.55857046,183.29,183.18,0.34]
[1722097632116,8.55857046,183.29,183.18,20.34]
[1722097632670,29.0,183.32,183.18,20.34]
[1722097632815,37.55844039,183.32,183.19,45.0]
[1722097633017,37.55844039,183.32,183.2,20.34]
[1722097633233,37.55844039,183.32,183.21,45.0]
[1722097633439,37.55844039,183.32,183.22,20.34]
[1722097633614,37.55844039,183.32,183.23,45.0]
[1722097633942,37.55844039,183.32,183.24,20.0]
[1722097634136,15.5451,183.31,183.25,41.59964386]
[1722097634343,15.5451,183.31,183.26,20.0]
[1722097634521,15.5451,183.31,183.26,16.62550968]
[1722097635239,25.78,183.29,183.26,16.62550968]
[1722097635941,0.82205329,183.28,183.05,46.73047526]
[1722097636234,25.78,183.23,183.1,21.877747]
[1722097636614,25.78,183.23,183.08,5.71055021]
[1722097636824,0.82205329,183.28,183.1,16.48]
[1722097637023,26.60205329,183.28,183.1,58.356749]
[1722097637235,26.60205329,183.28,183.12,16.48]
[1722097637543,26.60205329,183.28,183.14,16.48]
[1722097637753,0.82205329,183.28,183.15,36.48]
[1722097637938,25.78,183.29,183.16,0.34]
[1722097638446,15.5451,183.31,183.16,0.34]
[1722097643862,15.5451,183.31,183.15,81.48]
[1722097644038,15.5451,183.31,183.15,36.48]
[1722097644440,15.5451,183.31,183.15,62.26]
[1722097644642,15.5451,183.31,183.17,16.48]
[1722097644843,15.5451,183.31,183.19,16.48]
[1722097645165,15.5451,183.31,183.2,20.0]
[1722097645329,15.5451,183.31,183.21,0.34]
[1722097645529,11.7166,183.35,183.21,45.34]
[1722097645530,6.2624,183.35,183.21,45.34]
[1722097645752,32.0424,183.35,183.22,20.0]
[1722097645925,32.0424,183.35,183.23,45.34]
[1722097646130,32.0424,183.35,183.24,20.0]
[1722097646353,33.74633571,183.35,183.25,45.0]
[1722097646561,33.74633571,183.35,183.26,20.0]
[1722097646861,33.74633571,183.35,183.27,45.0]
[1722097647156,33.74633571,183.35,183.28,20.0]
[1722097647739,25.78,183.32,183.28,20.0]
[1722097647931,25.78,183.32,183.17,36.48]
[1722097648130,25.78,183.32,183.18,0.34]
[1722097648131,27.48393571,183.32,183.18,0.34]
[1722097648334,27.48393571,183.32,183.17,36.48]
[1722097649739,27.48393571,183.32,183.18,45.34]
[1722097649952,27.48393571,183.32,183.19,20.0]
[1722097650254,27.48393571,183.32,183.2,45.34]
[1722097650433,27.48393571,183.32,183.21,20.0]
[1722097650634,27.48393571,183.32,183.22,45.0]
[1722097650857,27.48393571,183.32,183.23,20.0]
[1722097651060,27.48393571,183.32,183.24,45.0]
[1722097651246,27.48393571,183.32,183.25,20.0]
[1722097652357,1.70393571,183.32,183.25,20.0]
[1722097652542,6.2624,183.35,183.26,45.0]
[1722097652856,6.2624,183.35,183.27,20.0]
[1722097653043,6.2624,183.35,183.28,45.0]
[1722097653247,6.2624,183.35,183.29,20.0]
[1722097653459,6.2624,183.35,183.3,45.0]
[1722097653755,6.2624,183.35,183.31,20.0]
[1722097656675,6.2624,183.35,183.32,45.0]
[1722097657436,6.2624,183.35,183.31,20.0]
[1722097657662,32.0424,183.35,183.23,21.7683841]
[1722097657845,32.0424,183.35,183.23,1.7683841]
[1722097658062,32.0424,183.35,183.21,20.0]
[1722097658759,32.86445329,183.35,183.19,20.0]
[1722097659066,32.86445329,183.35,183.15,56.1207]
[1722097659360,32.86445329,183.35,183.16,6.55951525]
[1722097659554,32.86445329,183.35,183.17,16.48]
[1722097659764,32.86445329,183.35,183.19,16.48]
[1722097659946,32.86445329,183.35,183.2,36.48]
[1722097660265,32.86445329,183.35,183.21,45.34]
[1722097660466,32.86445329,183.35,183.22,20.0]
[1722097660762,32.86445329,183.35,183.23,45.34]
[1722097661569,7.08445329,183.35,183.23,45.34]
[1722097662247,7.08445329,183.35,183.24,20.0]
[1722097662447,7.08445329,183.35,183.25,45.34]
[1722097662648,7.08445329,183.35,183.26,20.0]
[1722097662950,7.08445329,183.35,183.27,45.0]
[1722097663153,7.08445329,183.35,183.28,20.0]
[1722097663359,7.08445329,183.35,183.29,45.0]
[1722097663560,7.08445329,183.35,183.3,20.0]
[1722097665079,7.08445329,183.35,183.31,45.0]
[1722097665680,7.08445329,183.35,183.3,20.0]
[1722097665865,7.08445329,183.35,183.25,0.34]
[1722097666566,7.08445329,183.35,183.2,20.0]
[1722097666567,25.78,183.34,183.2,20.0]
[1722097667272,25.78,183.34,183.19,36.48]
[1722097667467,26.60205329,183.34,183.17,64.129466]
[1722097667686,26.60205329,183.34,183.17,42.26]
[1722097667883,26.60205329,183.34,183.18,45.0]
[1722097668869,26.60205329,183.34,183.19,0.34]
[1722097669053,26.60205329,183.34,183.19,20.34]
[1722097669253,26.60205329,183.34,183.2,45.0]
[1722097669447,25.78,183.31,183.15,18.25340792]
[1722097670164,25.78,183.31,183.15,40.12576992]
[1722097670772,25.78,183.31,183.17,16.48]
[1722097670966,25.78,183.31,183.18,65.34]
[1722097671168,25.78,183.31,183.18,0.34]
[1722097671371,25.78,183.31,183.19,0.34]
[1722097671574,25.78,183.31,183.17,0.34]
[1722097672479,16.4933,183.3,183.17,0.34]
[1722097672688,6.0076,183.29,183.17,0.34]
[1722097673978,6.0076,183.29,183.17,20.34]
[1722097674181,6.0076,183.29,183.18,45.0]
[1722097674384,6.0076,183.29,183.19,20.34]
[1722097674574,6.0076,183.29,183.2,45.0]
[1722097674885,6.0076,183.29,183.21,20.0]
[1722097675084,6.0076,183.29,183.22,45.0]
[1722097675284,6.0076,183.29,183.23,20.0]
[1722097675587,6.83838426,183.29,183.23,20.0]
[1722097675771,8.20272778,183.29,183.15,1.77340792]
[1722097675973,8.20272778,183.29,183.14,20.0]
[1722097676191,6.83838426,183.29,183.14,20.0]
[1722097676890,6.83838426,183.29,183.15,45.34]
[1722097677092,6.83838426,183.29,183.16,20.0]
[1722097677282,6.83838426,183.29,183.17,45.34]
[1722097677463,6.83838426,183.29,183.18,20.0]
[1722097677660,6.83838426,183.29,183.19,45.0]
[1722097677877,0.83078426,183.28,183.2,20.0]
[1722097678287,0.83078426,183.28,183.21,45.0]
[1722097678471,0.83078426,183.28,183.22,20.0]
[1722097678783,0.33078426,183.28,183.22,20.0]
[1722097678986,6.0076,183.29,183.22,20.0]
[1722097680982,7.37189364,183.29,183.22,20.0]
[1722097681287,6.0076,183.29,183.22,20.0]
[1722097682597,1.36429261,183.28,183.22,20.0]
[1722097682773,6.0076,183.29,183.22,20.0]
[1722097683305,12.89,183.24,183.22,20.0]
[1722097683492,12.89,183.24,183.18,20.0]
[1722097683693,12.89,183.24,183.19,45.0]
[1722097684310,12.89,183.24,183.2,20.0]
[1722097685486,12.89,183.23,183.2,20.0]
[1722097689702,6.0076,183.29,183.2,20.0]
[1722097689878,12.89,183.24,183.21,45.0]
[1722097690078,12.89,183.24,183.22,20.0]
[1722097691600,12.89,183.23,183.1,39.2378335]
[1722097691898,12.89,183.22,183.15,12.89]
[1722097692102,12.89,183.22,183.16,45.0]
[1722097693785,12.89,183.21,183.17,20.0]
[1722097694006,12.89,183.21,183.18,45.0]
[1722097700814,12.89,183.21,183.17,20.0]
[1722097700997,12.89,183.21,183.15,20.0]
[1722097701188,12.89,183.21,183.16,45.0]
[1722097701389,12.89,183.21,183.17,20.0]
[1722097702311,12.89,183.23,183.18,45.0]
[1722097703092,8.56172556,183.24,183.18,45.0]
[1722097703395,21.45172556,183.24,183.18,45.0]
[1722097705292,12.89,183.23,183.18,45.0]
[1722097706215,12.89,183.23,183.17,45.0]
[1722097708618,12.89,183.22,183.17,45.0]
[1722097708927,12.89,183.22,183.16,45.0]
[1722097709502,6.0076,183.29,183.18,12.89]
[1722097709703,6.0076,183.29,183.19,65.34]
[1722097709704,12.89,183.26,183.19,65.34]
[1722097710125,14.56819549,183.29,183.19,78.23]
[1722097710328,12.89,183.27,183.2,12.89]
[1722097710497,12.89,183.26,183.21,45.0]
[1722097710699,12.89,183.26,183.19,65.17]
[1722097711009,12.89,183.26,183.19,65.0]
[1722097711211,12.89,183.25,183.19,45.0]
[1722097711903,12.89,183.24,183.19,45.0]
[1722097712103,12.89,183.24,183.18,45.0]
[1722097712741,20.02399549,183.29,183.18,45.0]
[1722097712899,12.89,183.25,183.18,45.0]
[1722097714712,5.4562,183.28,183.18,45.0]
[1722097714713,12.89,183.22,183.18,45.0]
[1722097715099,0.17,183.28,183.18,45.0]
[1722097715321,15.93281326,183.29,183.18,45.0]
[1722097715322,12.89,183.24,183.18,45.0]
[1722097717534,12.89,183.22,183.18,45.0]
[1722097718715,5.4567,183.26,183.18,45.0]
[1722097718716,12.89,183.23,183.18,45.0]
[1722097718918,12.89,183.23,183.17,45.0]
[1722097721545,12.89,183.24,183.17,45.0]
[1722097724327,12.89,183.23,183.17,44.5]
[1722097724633,12.89,183.24,183.17,44.5]
[1722097724822,12.89,183.24,183.17,57.39]
[1722097725427,12.89,183.24,183.17,44.5]
[1722097726341,12.89,183.23,183.17,44.5]
[1722097727135,5.4584,183.21,183.17,44.5]
[1722097727420,12.89,183.21,183.17,44.5]
[1722097728436,12.89,183.2,183.14,12.89]
[1722097728822,12.89,183.2,183.15,45.0]
[1722097729935,5.457,183.25,183.15,45.0]
[1722097730240,12.89,183.21,183.15,45.0]
[1722097730425,1.36477049,183.2,183.15,45.0]
[1722097730823,12.89,183.21,183.15,45.0]
[1722097734766,0.17,183.26,183.14,45.0]
[1722097734930,12.89,183.21,183.14,45.0]
[1722097736936,12.89,183.2,183.14,45.0]
[1722097737337,19.71225821,183.24,183.09,23.2307]
[1722097737338,12.89,183.18,183.09,23.2307]
[1722097737544,14.25495819,183.17,183.1,58.06]
[1722097737732,12.89,183.17,183.1,57.89]
[1722097738949,12.89,183.17,183.11,20.0]
[1722097739247,12.89,183.17,183.12,45.0]
[1722097739831,12.89,183.17,183.04,19.712258]
[1722097740032,12.89,183.16,183.09,12.89]
[1722097740251,28.4741,183.21,183.1,12.89]
[1722097740252,12.89,183.17,183.1,12.89]
[1722097740752,12.89,183.16,183.03,5.71208836]
[1722097740961,12.89,183.16,183.09,12.89]
[1722097742234,12.89,183.16,183.04,12.89]
[1722097742556,12.89,183.15,183.09,12.89]
[1722097742763,12.89,183.15,183.08,12.89]
[1722097742931,12.89,183.15,183.09,45.0]
[1722097743851,1.36524924,183.14,183.09,45.0]
[1722097744042,12.89,183.15,183.09,45.0]
[1722097744856,12.89,183.16,183.09,57.89]
[1722097745356,1.36524681,183.15,183.09,57.89]
[1722097745652,1.36525981,183.14,183.09,45.0]
[1722097746554,12.89,183.15,183.09,45.0]
[1722097746942,1.36525502,183.14,183.09,45.0]
[1722097750655,1.36525502,183.14,183.06,20.0]
[1722097750857,1.36525502,183.14,183.08,12.89]
[1722097751042,14.25525502,183.14,183.07,12.89]
[1722097751355,14.25525502,183.14,183.08,45.0]
[1722097751356,12.89,183.14,183.08,45.0]
[1722097751861,1.36536953,183.13,183.08,45.0]
[1722097753261,12.89,183.14,183.07,12.89]
[1722097753451,12.89,183.12,183.05,12.89]
[1722097753652,18.9336,183.12,183.02,12.89]
[1722097753855,12.89,183.1,183.01,10.3407]
[1722097754160,12.89,183.1,183.04,12.89]
[1722097754760,22.0016,183.12,183.05,12.89]
[1722097754944,22.0016,183.12,183.06,12.89]
[1722097755563,22.0016,183.12,183.07,12.89]
[1722097755766,22.0016,183.12,183.06,12.89]
[1722097756462,34.8916,183.12,183.05,12.89]
[1722097759554,6.02757406,183.12,183.05,12.89]
[1722097761151,6.02757406,183.12,183.04,12.89]
[1722097761356,6.02757406,183.12,183.05,57.89]
[1722097762565,12.07117406,183.12,183.05,57.89]
[1722097765249,12.89,183.09,182.99,14.68965257]
[1722097765452,12.89,183.09,182.99,1.79965257]
[1722097765666,12.89,183.1,183.03,12.89]
[1722097766971,6.0436,183.12,183.03,12.89]
[1722097767162,6.0436,183.12,183.04,45.0]
[1722097770178,20.07314028,183.12,183.04,45.0]
[1722097771379,6.0436,183.12,183.08,12.89]
[1722097772087,6.0436,183.12,183.07,12.89]
[1722097773481,6.0436,183.12,183.06,12.89]
[1722097773786,6.0436,183.12,183.07,45.0]
[1722097775092,15.958,183.13,183.1,12.89]
[1722097775325,15.958,183.13,183.09,12.89]
[1722097777088,6.3661,183.17,183.12,12.89]
[1722097777264,15.6094,183.18,183.14,12.89]
[1722097779280,15.6094,183.18,183.13,57.89]
[1722097780471,15.6094,183.18,183.14,12.89]
[1722097781487,15.6094,183.18,183.13,57.89]
[1722097781694,15.6094,183.18,183.14,12.89]
[1722097782275,15.6094,183.18,183.13,57.89]
[1722097782474,15.6094,183.18,183.14,12.89]
[1722097783178,15.6094,183.18,183.13,45.0]
[1722097783374,15.6094,183.18,183.14,12.89]
[1722097784570,15.6094,183.18,183.13,57.89]
[1722097785294,14.93167734,183.21,183.13,57.89]
[1722097785591,12.89,183.2,183.14,12.89]
[1722097785794,1.36490828,183.19,183.14,12.89]
[1722097786009,33.27987734,183.21,183.13,57.89]
[1722097786010,12.89,183.2,183.13,57.89]
[1722097786997,18.3487,183.2,183.13,45.0]
[1722097787188,12.89,183.2,183.13,45.0]
[1722097788097,8.56557734,183.21,183.13,45.0]
[1722097788286,12.89,183.29,183.2,12.89]
[1722097788485,12.89,183.29,183.15,67.97]
[1722097788486,12.89,183.29,183.21,45.0]
[1722097788686,8.56267333,183.29,183.22,31.9024]
[1722097788886,1.36424128,183.36,183.28,12.89]
[1722097788887,18.344,183.36,183.28,12.89]
[1722097789096,5.4534,183.37,183.29,45.0]
[1722097789275,8.55805983,183.37,183.32,12.89]
[1722097789477,8.55805983,183.37,183.33,45.0]
[1722097789978,12.89,183.35,183.24,6.0481]
[1722097790176,12.89,183.35,183.28,12.89]
[1722097790378,12.89,183.34,183.27,12.89]
[1722097790577,12.89,183.32,183.22,35.4924]
[1722097790774,12.89,183.32,183.25,12.89]
[1722097791003,12.89,183.31,183.26,45.0]
[1722097791379,12.89,183.31,183.25,45.0]
[1722097792006,12.89,183.32,183.25,57.89]
[1722097792480,12.89,183.33,183.26,12.89]
[1722097793395,12.89,183.33,183.27,45.0]
[1722097795581,6.5471,183.34,183.27,57.89]
[1722097795790,6.5471,183.34,183.28,12.89]
[1722097795996,6.5471,183.34,183.29,45.0]
[1722097796997,12.89,183.36,183.29,57.89]
[1722097797500,12.89,183.35,183.29,57.89]
[1722097797706,12.89,183.35,183.29,45.0]
[1722097797895,12.89,183.34,183.29,45.0]
[1722097798209,24.14945983,183.37,183.22,20.0]
[1722097798210,12.89,183.33,183.26,12.89]
[1722097798386,12.89,183.33,183.27,45.0]
[1722097802107,12.89,183.32,183.27,45.0]
[1722097802819,5.4541,183.35,183.27,45.0]
[1722097802820,24.14945983,183.37,183.27,45.0]
[1722097803111,12.89,183.34,183.27,57.89]
[1722097804108,12.89,183.35,183.28,12.89]
[1722097804293,12.89,183.35,183.29,45.0]
[1722097804493,12.89,183.34,183.29,45.0]
[1722097804693,12.89,183.34,183.28,45.0]
[1722097805210,8.55805983,183.37,183.29,12.89]
[1722097805510,21.44805983,183.37,183.3,57.89]
[1722097806284,12.89,183.36,183.3,45.0]
[1722097806506,12.89,183.34,183.3,45.0]
[1722097806707,12.89,183.34,183.27,12.89]
[1722097806907,12.89,183.34,183.28,45.0]
[1722097807098,12.89,183.33,183.24,16.3868]
[1722097807303,12.89,183.33,183.26,12.89]
[1722097808307,12.89,183.33,183.24,16.3868]
[1722097808519,12.89,183.33,183.25,12.89]
[1722097809805,12.89,183.33,183.26,45.0]
[1722097810303,1.36401093,183.38,183.27,16.41]
[1722097810506,12.89,183.41,183.34,12.89]
[1722097810812,12.89,183.4,183.33,12.89]
[1722097810988,12.89,183.4,183.34,45.0]
[1722097812193,12.89,183.37,183.28,0.34]
[1722097812393,14.25340808,183.42,183.29,12.89]
[1722097812394,12.89,183.36,183.29,12.89]
[1722097812614,12.89,183.35,183.3,45.0]
[1722097812834,12.89,183.34,183.24,16.3868]
[1722097813019,12.89,183.34,183.27,12.89]
[1722097813212,21.5333,183.38,183.27,12.89]
[1722097813427,12.89,183.35,183.28,12.89]
[1722097813714,12.89,183.35,183.24,16.3868]
[1722097813715,12.89,183.33,183.26,12.89]
[1722097813889,12.89,183.3,183.2,28.4957]
[1722097814089,12.89,183.31,183.24,12.89]
[1722097814703,12.89,183.3,183.2,15.6057]
[1722097814893,12.89,183.29,183.22,12.89]
[1722097816818,12.89,183.29,183.23,45.0]
[1722097817494,12.89,183.31,183.23,57.89]
[1722097818196,12.89,183.3,183.23,57.89]
[1722097818697,12.89,183.29,183.23,45.0]
[1722097818894,12.89,183.27,183.17,1.85589701]
[1722097819094,12.89,183.27,183.2,12.89]
[1722097819520,12.89,183.28,183.2,12.89]
[1722097820823,12.89,183.28,183.21,45.0]
[1722097820999,12.89,183.27,183.21,45.0]
[1722097821837,12.89,183.27,183.2,45.0]
[1722097822040,12.89,183.26,183.2,45.0]
[1722097825708,26.9891,183.29,183.2,45.0]
[1722097825709,12.89,183.25,183.2,45.0]
[1722097825908,12.89,183.25,183.18,12.89]
[1722097825909,12.89,183.26,183.19,57.89]
[1722097826334,21.5333,183.29,183.23,12.89]
[1722097826510,6.4277,183.29,183.23,12.89]
[1722097829203,19.3177,183.29,183.22,12.89]
[1722097829430,19.3177,183.29,183.23,45.0]
[1722097832221,19.3177,183.29,183.22,45.0]
[1722097833034,19.3177,183.29,183.22,57.89]
[1722097833239,12.89,183.28,183.16,15.6057]
[1722097833414,12.89,183.25,183.18,12.89]
[1722097833727,12.89,183.25,183.17,20.0]
[1722097833931,12.89,183.25,183.18,12.89]
[1722097834135,12.89,183.25,183.17,12.89]
[1722097834333,12.89,183.25,183.16,15.6057]
[1722097834523,12.89,183.25,183.17,12.89]
[1722097834724,12.89,183.25,183.18,45.0]
[1722097835029,12.89,183.25,183.17,57.89]
[1722097835926,12.89,183.25,183.18,12.89]
[1722097836127,12.89,183.25,183.19,45.0]
[1722097836833,12.89,183.27,183.2,12.89]
[1722097837135,12.89,183.27,183.21,45.0]
[1722097837520,6.4277,183.29,183.22,12.89]
[1722097837722,6.4277,183.29,183.23,45.0]
[1722097839031,19.3177,183.29,183.23,45.0]
[1722097839417,12.89,183.27,183.16,0.17]
[1722097839616,6.4277,183.29,183.18,12.89]
[1722097839928,12.89,183.26,183.19,45.17]
[1722097840636,12.89,183.26,183.19,45.0]
[1722097841143,5.4562,183.28,183.19,45.0]
[1722097841330,11.8835,183.29,183.19,57.89]
[1722097841528,12.89,183.26,183.19,57.89]
[1722097842136,5.4563,183.28,183.19,45.0]
[1722097842334,12.89,183.26,183.19,45.0]
[1722097842634,15.1056,183.33,183.2,12.89]
[1722097842865,25.4551,183.32,183.21,58.06]
[1722097843151,12.89,183.28,183.21,58.06]